Workbook

Sheet Team Reporting
B1: Team Name: | E1: TERI
A2: Individual reporting file names: | E2: Phil-weekly-individual | M2: To update the data you will need to have all of the individual time reporting files opened. Press this button to open all the individual files. If the individual files are not in the same directory as the team file, indicate the subdirectory where they exist.
E3: Ryan-weekly-individual
E4: Jordan-weekly-individual
E5: Derek-weekly-individual
A7: Directory for individual files:
A11: First Term | D11: Number of weeks: | E11: 2 | F11: Each week, increment the number of weeks reported for the term.
B13: Totals | E13: First Term
B14: Avg Act | C14: Act | D14: Est | E14: Wk1Act | F14: Wk2Est | G14: Wk2Act | H14: Wk3Est | I14: Wk3Act | J14: Wk4Est | K14: Wk4Act | L14: Wk5Est | M14: Wk5Act | N14: Wk6Est | O14: Wk6Act | P14: Wk7Est | Q14: Wk7Act | R14: Wk8Est | S14: Wk8Act | T14: Wk9Est | U14: Wk9Act | V14: Wk10Est | W14: Wk10Act | X14: FinalsEst | Y14: FinalsAct
A15: =IF(ISBLANK(E2),"",GetValuesFromNamedRange(E2,"Name")) -> Philip Rotoli | B15: =IF(OR($E$11=0,A15=""),"", SUM(IF(RIGHT($E$14:$Y$14,3)="Act",E15:Y15,0))/$E$11) -> 37.5 | C15: =IF(A15="","",SUM(IF(ISNUMBER(E15:Y15),E15:Y15,0)*ISNUMBER(SEARCH("Act",$E$14:$Y$14)))) -> 75 | D15: =IF(A15="","",SUM(IF(ISNUMBER(E15:Y15),E15:Y15,0)*ISNUMBER(SEARCH("Est",$E$14:$Y$14)))) -> 80 | E15: =IF(A15 = "","",GetValuesFromNamedRange(E2,"T1Data")) -> 3 | F15: 2 | G15: 3 | H15: 4 | I15: 4 | J15: 11 | K15: 11 | L15: 10 | M15: 10 | N15: 10 | O15: 11 | P15: 10 | Q15: 10 | R15: 11 | S15: 8 | T15: 10 | U15: 10 | V15: 5 | W15: 5 | X15: 7 | Y15: 0
A16: =IF(ISBLANK(E3),"",GetValuesFromNamedRange(E3,"Name")) -> Ryan Wilson | B16: =IF(OR($E$11=0,A16=""),"", SUM(IF(RIGHT($E$14:$Y$14,3)="Act",E16:Y16,0))/$E$11) -> 35.625 | C16: =IF(A16="","",SUM(IF(ISNUMBER(E16:Y16),E16:Y16,0)*ISNUMBER(SEARCH("Act",$E$14:$Y$14)))) -> 71.25 | D16: =IF(A16="","",SUM(IF(ISNUMBER(E16:Y16),E16:Y16,0)*ISNUMBER(SEARCH("Est",$E$14:$Y$14)))) -> 83.25 | E16: =IF(A16 = "","",GetValuesFromNamedRange(E3,"T1Data")) -> 2.75 | F16: 11.25 | G16: 11 | H16: 9.5 | I16: 9.75 | J16: 7 | K16: 9 | L16: 7 | M16: 6.5 | N16: 7.5 | O16: 4.75 | P16: 8 | Q16: 4 | R16: 9 | S16: 6 | T16: 8 | U16: 10.5 | V16: 6 | W16: 7 | X16: 10 | Y16: 0
A17: =IF(ISBLANK(E4),"",GetValuesFromNamedRange(E4,"Name")) -> Jordan Tice | B17: =IF(OR($E$11=0,A17=""),"", SUM(IF(RIGHT($E$14:$Y$14,3)="Act",E17:Y17,0))/$E$11) -> 32.75 | C17: =IF(A17="","",SUM(IF(ISNUMBER(E17:Y17),E17:Y17,0)*ISNUMBER(SEARCH("Act",$E$14:$Y$14)))) -> 65.5 | D17: =IF(A17="","",SUM(IF(ISNUMBER(E17:Y17),E17:Y17,0)*ISNUMBER(SEARCH("Est",$E$14:$Y$14)))) -> 56.75 | E17: =IF(A17 = "","",GetValuesFromNamedRange(E4,"T1Data")) -> 3 | F17: 5.5 | G17: 4.5 | H17: 5.5 | I17: 7.25 | J17: 8.5 | K17: 9.25 | L17: 9 | M17: 9.5 | N17: 5 | O17: 6 | P17: 3.5 | Q17: 3.5 | R17: 5.25 | S17: 5.25 | T17: 4.5 | U17: 6.5 | V17: 10 | W17: 10.75 | X17: 0 | Y17: 0
A18: =IF(ISBLANK(E5),"",GetValuesFromNamedRange(E5,"Name")) -> Derek Leung | B18: =IF(OR($E$11=0,A18=""),"", SUM(IF(RIGHT($E$14:$Y$14,3)="Act",E18:Y18,0))/$E$11) -> 35.925 | C18: =IF(A18="","",SUM(IF(ISNUMBER(E18:Y18),E18:Y18,0)*ISNUMBER(SEARCH("Act",$E$14:$Y$14)))) -> 71.85 | D18: =IF(A18="","",SUM(IF(ISNUMBER(E18:Y18),E18:Y18,0)*ISNUMBER(SEARCH("Est",$E$14:$Y$14)))) -> 75.75 | E18: =IF(A18 = "","",GetValuesFromNamedRange(E5,"T1Data")) -> 3.3 | F18: 8.5 | G18: 4.55 | H18: 2.5 | I18: 7.5 | J18: 4 | K18: 3.25 | L18: 10 | M18: 9.25 | N18: 7.5 | O18: 11 | P18: 10.5 | Q18: 2.5 | R18: 9.25 | S18: 9.25 | T18: 10.5 | U18: 10.75 | V18: 10.5 | W18: 10.5 | X18: 2.5 | Y18: 0
A19: =IF(ISBLANK(E6),"",GetValuesFromNamedRange(E6,"Name")) ->  | B19: =IF(OR($E$11=0,A19=""),"", SUM(IF(RIGHT($E$14:$Y$14,3)="Act",E19:Y19,0))/$E$11) ->  | C19: =IF(A19="","",SUM(IF(ISNUMBER(E19:Y19),E19:Y19,0)*ISNUMBER(SEARCH("Act",$E$14:$Y$14)))) ->  | D19: =IF(A19="","",SUM(IF(ISNUMBER(E19:Y19),E19:Y19,0)*ISNUMBER(SEARCH("Est",$E$14:$Y$14)))) ->  | E19: =IF(A19 = "","",GetValuesFromNamedRange(E6,"T1Data")) -> 
A20: Team totals | B20: =IF(OR(E11=0, SUM(B15:B19)=0),0,AVERAGE(B15:B19)) -> 35.45 | C20: =SUM(C15:C19) -> 283.6 | D20: =SUM(D15:D19) -> 295.75 | E20: =SUM(E15:E19) -> 12.05 | F20: =SUM(F15:F19) -> 27.25 | G20: 23.05 | H20: 21.5 | I20: 28.5 | J20: 30.5 | K20: 32.5 | L20: 36 | M20: 35.25 | N20: 30 | O20: 32.75 | P20: 32 | Q20: 20 | R20: 34.5 | S20: 28.5 | T20: 33 | U20: 37.75 | V20: 31.5 | W20: 33.25 | X20: 19.5 | Y20: 0
A24: Second Term | D24: Number of weeks: | E24: 0 | F24: Each week, increment the number of weeks reported for the term.
B26: Second Term | E26: Second Term
B27: Avg Act | C27: Act | D27: Est | E27: Wk1Est | F27: Wk1Act | G27: Wk2Est | H27: Wk2Act | I27: Wk3Est | J27: Wk3Act | K27: Wk4Est | L27: Wk4Act | M27: Wk5Est | N27: Wk5Act | O27: Wk6Est | P27: Wk6Act | Q27: Wk7Est | R27: Wk7Act | S27: Wk8Est | T27: Wk8Act | U27: Wk9Est | V27: Wk9Act | W27: Wk10Est | X27: Wk10Act | Y27: FinalsEst | Z27: FinalsAct
A28: =IF(ISBLANK(E2),"",GetValuesFromNamedRange(E2,"Name")) -> Philip Rotoli | B28: =IF(OR($E$24=0,A28=""),"",SUM(IF(RIGHT($E$27:$Z$27,3)="Act",E28:Z28,0))/$E$24) ->  | C28: =IF($A28="","",SUM(IF(ISNUMBER($E28:$Z28),$E28:$Z28,0)*ISNUMBER(SEARCH("Act",$E$27:$Z$27)))) -> 0 | D28: =IF($A28="","",SUM(IF(ISNUMBER($E28:$Z28),$E28:$Z28,0)*ISNUMBER(SEARCH("Est",$E$27:$Z$27)))) -> 0 | E28: =IF(A28 = "","",GetValuesFromNamedRange(E2,"T2Data")) -> 0 | F28: 0 | G28: 0 | H28: 0 | I28: 0 | J28: 0 | K28: 0 | L28: 0 | M28: 0 | N28: 0 | O28: 0 | P28: 0 | Q28: 0 | R28: 0 | S28: 0 | T28: 0 | U28: 0 | V28: 0 | W28: 0 | X28: 0 | Y28: 0 | Z28: 0
A29: =IF(ISBLANK(E3),"",GetValuesFromNamedRange(E3,"Name")) -> Ryan Wilson | B29: =IF(OR($E$24=0,A29=""),"",SUM(IF(RIGHT($E$27:$Z$27,3)="Act",E29:Z29,0))/$E$24) ->  | C29: =IF($A29="","",SUM(IF(ISNUMBER($E29:$Z29),$E29:$Z29,0)*ISNUMBER(SEARCH("Act",$E$27:$Z$27)))) -> 0 | D29: =IF($A29="","",SUM(IF(ISNUMBER($E29:$Z29),$E29:$Z29,0)*ISNUMBER(SEARCH("Est",$E$27:$Z$27)))) -> 0 | E29: =IF(A29 = "","",GetValuesFromNamedRange(E3,"T2Data")) -> 0 | F29: 0 | G29: 0 | H29: 0 | I29: 0 | J29: 0 | K29: 0 | L29: 0 | M29: 0 | N29: 0 | O29: 0 | P29: 0 | Q29: 0 | R29: 0 | S29: 0 | T29: 0 | U29: 0 | V29: 0 | W29: 0 | X29: 0 | Y29: 0 | Z29: 0
A30: =IF(ISBLANK(E4),"",GetValuesFromNamedRange(E4,"Name")) -> Jordan Tice | B30: =IF(OR($E$24=0,A30=""),"",SUM(IF(RIGHT($E$27:$Z$27,3)="Act",E30:Z30,0))/$E$24) ->  | C30: =IF($A30="","",SUM(IF(ISNUMBER($E30:$Z30),$E30:$Z30,0)*ISNUMBER(SEARCH("Act",$E$27:$Z$27)))) -> 0 | D30: =IF($A30="","",SUM(IF(ISNUMBER($E30:$Z30),$E30:$Z30,0)*ISNUMBER(SEARCH("Est",$E$27:$Z$27)))) -> 0 | E30: =IF(A30 = "","",GetValuesFromNamedRange(E4,"T2Data")) -> 0 | F30: 0 | G30: 0 | H30: 0 | I30: 0 | J30: 0 | K30: 0 | L30: 0 | M30: 0 | N30: 0 | O30: 0 | P30: 0 | Q30: 0 | R30: 0 | S30: 0 | T30: 0 | U30: 0 | V30: 0 | W30: 0 | X30: 0 | Y30: 0 | Z30: 0
A31: =IF(ISBLANK(E5),"",GetValuesFromNamedRange(E5,"Name")) -> Derek Leung | B31: =IF(OR($E$24=0,A31=""),"",SUM(IF(RIGHT($E$27:$Z$27,3)="Act",E31:Z31,0))/$E$24) ->  | C31: =IF($A31="","",SUM(IF(ISNUMBER($E31:$Z31),$E31:$Z31,0)*ISNUMBER(SEARCH("Act",$E$27:$Z$27)))) -> 0 | D31: =IF($A31="","",SUM(IF(ISNUMBER($E31:$Z31),$E31:$Z31,0)*ISNUMBER(SEARCH("Est",$E$27:$Z$27)))) -> 0 | E31: =IF(A31 = "","",GetValuesFromNamedRange(E5,"T2Data")) -> 0 | F31: 0 | G31: 0 | H31: 0 | I31: 0 | J31: 0 | K31: 0 | L31: 0 | M31: 0 | N31: 0 | O31: 0 | P31: 0 | Q31: 0 | R31: 0 | S31: 0 | T31: 0 | U31: 0 | V31: 0 | W31: 0 | X31: 0 | Y31: 0 | Z31: 0
A32: =IF(ISBLANK(E6),"",GetValuesFromNamedRange(E6,"Name")) ->  | B32: =IF(OR($E$24=0,A32=""),"",SUM(IF(RIGHT($E$27:$Z$27,3)="Act",E32:Z32,0))/$E$24) ->  | C32: =IF($A32="","",SUM(IF(ISNUMBER($E32:$Z32),$E32:$Z32,0)*ISNUMBER(SEARCH("Act",$E$27:$Z$27)))) ->  | D32: =IF($A32="","",SUM(IF(ISNUMBER($E32:$Z32),$E32:$Z32,0)*ISNUMBER(SEARCH("Est",$E$27:$Z$27)))) ->  | E32: =IF(A32 = "","",GetValuesFromNamedRange(E6,"T2Data")) -> 
A33: Team totals | B33: =IF(OR(E24=0,SUM(B28:B32)=0),0,AVERAGE(B28:B32)) -> 0 | C33: =SUM(C28:C32) -> 0 | D33: 0 | E33: 0 | F33: 0 | G33: 0 | H33: 0 | I33: 0 | J33: 0 | K33: 0 | L33: 0 | M33: 0 | N33: 0 | O33: 0 | P33: 0 | Q33: 0 | R33: 0 | S33: 0 | T33: 0 | U33: 0 | V33: 0 | W33: 0 | X33: 0 | Y33: 0 | Z33: 0
A37: Entire Project | D37: Number of weeks: | E37: =E11+E24 -> 2
B39: Entire Project | J39: Even when you have all of the indidividual time reporting files opened, a recalculation may not be triggered in this team reporting file. Press this button to force a recalculation of the totals.
B40: Avg Act | C40: Act | D40: Est
A41: =IF(ISBLANK(E2),"",GetValuesFromNamedRange(E2,"Name")) -> Philip Rotoli | B41: =IF(OR(A41="",($E$11+$E$24)=0),"",SUM(IF(RIGHT($E$14:$Y$14,3)="Act",E15:Y15,0),IF(RIGHT($E$27:$Z$27,3)="Act",E28:Z28,0))/($E$11 + $E$24)) -> 37.5 | C41: =IF(A41="","",SUM(C15,C28)) -> 75 | D41: =IF(A41="","",SUM(D15,D28)) -> 80
A42: =IF(ISBLANK(E3),"",GetValuesFromNamedRange(E3,"Name")) -> Ryan Wilson | B42: =IF(OR(A42="",($E$11+$E$24)=0),"",SUM(IF(RIGHT($E$14:$Y$14,3)="Act",E16:Y16,0),IF(RIGHT($E$27:$Z$27,3)="Act",E29:Z29,0))/($E$11 + $E$24)) -> 35.625 | C42: =IF(A42="","",SUM(C16,C29)) -> 71.25 | D42: =IF(A42="","",SUM(D16,D29)) -> 83.25
A43: =IF(ISBLANK(E4),"",GetValuesFromNamedRange(E4,"Name")) -> Jordan Tice | B43: =IF(OR(A43="",($E$11+$E$24)=0),"",SUM(IF(RIGHT($E$14:$Y$14,3)="Act",E17:Y17,0),IF(RIGHT($E$27:$Z$27,3)="Act",E30:Z30,0))/($E$11 + $E$24)) -> 32.75 | C43: =IF(A43="","",SUM(C17,C30)) -> 65.5 | D43: =IF(A43="","",SUM(D17,D30)) -> 56.75
A44: =IF(ISBLANK(E5),"",GetValuesFromNamedRange(E5,"Name")) -> Derek Leung | B44: =IF(OR(A44="",($E$11+$E$24)=0),"",SUM(IF(RIGHT($E$14:$Y$14,3)="Act",E18:Y18,0),IF(RIGHT($E$27:$Z$27,3)="Act",E31:Z31,0))/($E$11 + $E$24)) -> 35.925 | C44: =IF(A44="","",SUM(C18,C31)) -> 71.85 | D44: =IF(A44="","",SUM(D18,D31)) -> 75.75
A45: =IF(ISBLANK(E6),"",GetValuesFromNamedRange(E6,"Name")) ->  | B45: =IF(OR(A45="",($E$11+$E$24)=0),"",SUM(IF(RIGHT($E$14:$Y$14,3)="Act",E19:Y19,0),IF(RIGHT($E$27:$Z$27,3)="Act",E32:Z32,0))/($E$11 + $E$24)) ->  | C45: =IF(A45="","",SUM(C19,C32)) ->  | D45: =IF(A45="","",SUM(D19,D32)) -> 
A46: Team totals | B46: =IF(OR((E11+E24)=0,SUM(B41:B45)=0),0,AVERAGE(B41:B45)) -> 35.45 | C46: =SUM(C41:C45) -> 283.6 | D46: =SUM(D41:D45) -> 295.75
